bitfinex/quotes_ETHUSD_20251124
["timestamp","ask_amount","ask_price","bid_price","bid_amount"]
[1764017460577,0.002,2981.7,2981.4,3.35412893]
[1764017460775,0.002,2981.7,2981.3,3.35423779]
[1764017460936,0.002,2981.7,2981.3,6.70847922]
[1764017461140,0.002,2981.7,2981.3,7.33832839]
[1764017461374,0.002,2981.7,2981.3,3.80018696]
[1764017461560,0.4991,2981.7,2981.1,0.88925387]
[1764017461759,0.002,2981.7,2981.1,3.35445506]
[1764017461961,0.002,2981.7,2981.1,7.5981754]
[1764017462177,0.002,2981.7,2981.2,0.88925387]
[1764017462381,0.002,2981.7,2981.3,0.88925387]
[1764017462580,0.002,2981.7,2981.6,0.1839]
[1764017462942,0.002,2981.7,2981.6,0.3678]
[1764017463142,0.002,2981.7,2981.6,1.07315387]
[1764017463343,0.002,2981.7,2981.6,1.25705387]
[1764017463540,0.002,2981.7,2981.6,0.88925387]
[1764017463742,0.9568,2981.7,2981.2,0.88925387]
[1764017464004,0.405504,2981.4,2981.0,0.88925387]
[1764017464147,0.405504,2981.4,2980.7,0.88925387]
[1764017464347,0.6401,2980.8,2980.5,0.89025387]
[1764017464547,0.1824,2980.8,2980.5,0.001]
[1764017465079,0.216,2981.0,2980.5,0.4256498]
[1764017465281,0.1824,2980.9,2980.5,0.4256498]
[1764017465482,0.1824,2980.9,2980.5,0.001]
[1764017465685,0.216,2981.0,2980.5,0.001]
[1764017466770,0.1824,2980.9,2980.5,0.001]
[1764017467146,0.7131,2981.0,2980.5,0.001]
[1764017467147,0.216,2981.0,2980.5,0.001]
[1764017467550,0.405504,2981.3,2980.6,0.1839]
[1764017467749,0.405504,2981.3,2980.5,1.65045204]
[1764017468698,3.75982149,2981.3,2980.6,3.35502918]
[1764017469063,3.75982149,2981.3,2980.6,6.71005836]
[1764017469266,0.405504,2981.3,2980.6,6.71005836]
[1764017469697,0.7121,2981.4,2980.6,7.1426745]
[1764017469859,0.215,2981.4,2980.6,8.03192837]
[1764017470065,0.215,2981.4,2980.7,0.1839]
[1764017470397,0.215,2981.4,2980.7,0.88925387]
[1764017470564,0.215,2981.4,2980.8,0.76019817]
[1764017471470,0.215,2981.4,2980.9,3.35469153]
[1764017471897,0.7121,2981.4,2980.9,3.35469153]
[1764017472195,0.4971,2981.3,2980.9,3.35469153]
[1764017472365,0.215,2981.4,2980.9,6.70938306]
[1764017472562,0.215,2981.4,2981.0,0.75986369]
[1764017473280,0.215,2981.4,2980.9,6.70938306]
[1764017473474,0.215,2981.4,2980.9,3.35469153]
[1764017474000,0.215,2981.4,2980.9,6.70938306]
[1764017474812,4.57849797,2981.7,2980.9,3.35469153]
[1764017475019,1.22469411,2981.7,2980.9,6.70938306]
[1764017475316,0.002,2981.7,2981.0,1.07315387]
[1764017475496,0.002,2981.7,2981.2,0.88925387]
[1764017475694,0.002,2981.7,2981.6,3.53780394]
[1764017476575,0.002,2981.7,2981.6,3.35390394]
[1764017476771,0.002,2981.7,2981.6,3.53780394]
[1764017477316,0.002,2981.7,2981.6,4.30622371]
[1764017477516,0.002,2981.7,2981.6,5.37937758]
[1764017477809,0.002,2981.7,2981.6,4.49012371]
[1764017478225,0.002,2981.7,2981.6,4.30622371]
[1764017478522,0.002,2981.7,2981.6,4.49012371]
[1764017478727,0.002,2981.7,2981.6,5.67353424]
[1764017479026,0.002,2981.7,2981.6,6.39912835]
[1764017479180,0.002,2981.7,2981.6,5.21571782]
[1764017479713,0.002,2981.7,2981.6,5.03181782]
[1764017480117,0.002,2981.7,2981.6,5.21571782]
[1764017480288,0.002,2981.7,2981.6,5.24681782]
[1764017480478,0.002,2981.7,2981.6,3.35390394]
[1764017480679,0.9188,2981.7,2981.5,0.88997751]
[1764017480991,0.456,2981.7,2981.4,4.24409445]
[1764017481302,0.002,2981.7,2981.4,4.24409445]
[1764017481496,0.002,2981.7,2981.4,7.59822338]
[1764017481814,0.002,2981.7,2981.4,3.35411694]
[1764017482111,0.002,2981.7,2981.4,4.24409445]
[1764017482412,0.002,2981.7,2981.6,0.1839]
[1764017482783,0.002,2981.7,2981.4,6.70824587]
[1764017484414,0.4628,2981.5,2980.9,0.88997751]
[1764017484590,0.4628,2981.4,2980.8,0.88997751]
[1764017484780,0.6452,2980.9,2980.5,4.24604126]
[1764017485173,0.6452,2980.9,2980.5,0.89097751]
[1764017485380,0.454,2980.8,2980.5,0.001]
[1764017485811,0.454,2980.8,2980.5,3.35614]
[1764017486118,0.1824,2980.9,2980.5,0.001]
[1764017486792,0.6364,2980.9,2980.5,0.001]
[1764017487619,0.405504,2981.2,2980.5,0.001]
[1764017487781,0.215,2981.6,2980.5,0.88727338]
[1764017487981,1.17959411,2981.5,2980.5,1.56225089]
[1764017488181,4.53366861,2981.5,2980.6,6.71005836]
[1764017488482,0.454,2981.5,2980.6,6.71005836]
[1764017488683,0.002,2981.7,2980.8,0.88997751]
[1764017488892,0.454,2981.6,2980.9,0.88997751]
[1764017489295,0.002,2981.7,2981.0,0.03354579]
[1764017489497,0.002,2981.7,2981.0,0.9235233]
[1764017489692,0.002,2981.7,2981.0,0.1839]
[1764017489894,0.002,2981.7,2980.9,0.88997751]
[1764017490115,0.405504,2981.6,2980.9,0.88997751]
[1764017490409,0.456,2981.7,2980.9,0.88997751]
[1764017490612,1.17959411,2981.6,2980.7,3.56985569]
[1764017490981,0.454,2981.5,2980.7,6.92477232]
[1764017492005,0.454,2981.5,2980.7,7.81474983]
[1764017492217,0.454,2981.5,2980.8,0.78147498]
[1764017492904,0.454,2981.5,2980.9,3.35469153]
[1764017493427,3.80802234,2981.5,2980.9,3.35469153]
[1764017493616,0.4628,2981.0,2980.6,0.88997751]
[1764017493924,0.4628,2981.0,2980.7,3.35491393]
[1764017494422,0.405504,2981.3,2980.7,3.35491393]
[1764017495221,0.405504,2981.3,2980.7,6.70983056]
[1764017495724,0.405504,2981.3,2980.7,6.68837056]
[1764017495920,0.454,2981.4,2980.7,6.68837056]
[1764017496122,0.454,2981.4,2980.7,7.57834807]
[1764017496301,0.85631143,2981.4,2980.7,7.57834807]
[1764017497122,0.454,2981.3,2980.7,7.57834807]
[1764017497443,0.454,2981.3,2980.7,6.68837056]
[1764017497604,0.405504,2981.5,2980.7,7.57834807]
[1764017498134,0.669,2981.6,2980.7,10.9332647]
[1764017498299,0.669,2981.6,2980.8,0.88997751]
[1764017499422,0.215,2981.6,2980.9,10.9540521]
[1764017499597,0.002,2981.7,2981.1,0.88997751]
[1764017500010,0.002,2981.7,2981.1,0.92352217]
[1764017500444,0.002,2981.7,2981.6,1.07387751]
[1764017500732,0.002,2981.7,2981.6,0.3989]
[1764017501034,0.002,2981.7,2981.6,2.3506498]
[1764017501530,0.002,2981.7,2981.6,6.43014785]
[1764017502720,0.002,2981.7,2981.6,4.66229805]
[1764017502923,0.002,2982.0,2981.6,12.17173703]
[1764017503105,0.002,2982.0,2981.9,1.36982064]
[1764017503510,0.002,2982.0,2981.9,4.90728715]
[1764017503728,0.002,2982.0,2981.9,5.63288126]
[1764017505736,0.002,2982.3,2982.0,0.72559411]
[1764017505906,0.002,2982.3,2982.2,0.1839]
[1764017506101,0.002,2982.3,2982.2,2.0929665]
[1764017506314,0.002,2982.3,2982.2,2.2768665]
[1764017507235,0.454,2983.6,2982.2,1.55127239]
[1764017507416,0.454,2983.6,2982.6,0.88688251]
[1764017507617,0.454,2983.6,2982.8,6.70510928]
[1764017507930,0.454,2983.6,2982.6,0.88688251]
[1764017507931,0.4927,2983.1,2982.6,7.59238879]
[1764017508106,0.459,2982.8,2982.6,6.70550628]
[1764017508303,0.002,2983.5,2982.6,7.67014516]
[1764017508640,0.6512,2982.7,2982.5,3.35280252]
[1764017508839,0.002,2983.5,2982.5,6.70569438]
[1764017509029,0.4947,2983.2,2982.5,10.05858624]
[1764017509539,0.002,2983.2,2982.5,10.05858624]
[1764017509739,0.002,2983.2,2982.5,13.4114781]
[1764017509942,0.002,2983.2,2982.6,0.90949411]
[1764017510108,0.002,2983.2,2982.6,0.72559411]
[1764017510304,0.002,2983.2,2982.7,0.215]
[1764017510305,0.4688,2983.2,2982.7,0.215]
[1764017510543,0.4688,2983.2,2982.6,0.72559411]
[1764017510737,0.6733,2982.7,2982.5,6.70569438]
[1764017510940,0.6733,2982.7,2982.5,3.35280252]
[1764017511142,0.485,2982.6,2982.5,3.35280252]
[1764017511343,0.9518,2982.6,2982.5,3.35280252]
[1764017511841,0.9518,2982.6,2982.1,0.72559411]
[1764017512147,0.9518,2982.5,2982.1,0.72559411]
[1764017512353,0.9518,2982.5,2982.0,6.7069081]
[1764017512516,0.4668,2982.4,2982.0,6.7069081]
[1764017512912,0.485,2982.1,2981.7,3.35379146]
[1764017513229,0.9518,2982.1,2981.7,6.92258292]
[1764017514933,0.9518,2982.1,2981.7,6.70758292]
[1764017515114,0.4668,2982.0,2981.7,6.70758292]
[1764017515517,0.1883,2981.9,2981.7,6.70758292]
[1764017516116,0.4688,2982.3,2981.7,6.70758292]
[1764017517717,0.4688,2982.3,2981.6,0.001]
[1764017518340,0.4688,2982.3,2981.6,0.216]
[1764017520052,0.4688,2982.3,2981.7,6.70758292]
[1764017520353,0.002,2982.3,2982.2,0.1839]
[1764017520551,0.002,2982.3,2982.1,0.215]
[1764017520756,0.6709,2981.9,2981.7,0.88688251]
[1764017520955,0.485,2981.8,2981.6,0.001]
[1764017521154,0.4688,2982.3,2981.6,3.35489881]
[1764017521451,0.4668,2982.2,2981.6,6.70880275]
[1764017522016,0.4668,2982.2,2981.7,0.03353791]
[1764017522217,0.4668,2982.2,2981.6,0.001]
[1764017522423,0.002,2982.3,2981.6,0.216]
[1764017523454,0.4668,2982.2,2981.7,0.215]
[1764017523821,0.6733,2981.8,2981.6,0.001]
[1764017524022,0.1883,2981.8,2981.6,0.001]
[1764017524826,0.002,2982.3,2981.7,0.1839]
[1764017525057,0.002,2982.3,2981.8,0.03353678]
[1764017525253,0.002,2982.3,2981.7,0.1839]
[1764017525754,0.4688,2982.3,2981.6,0.88788251]
[1764017526160,0.4688,2982.3,2981.7,6.70758292]
[1764017526322,0.4688,2982.3,2981.7,3.35379146]
[1764017526524,0.485,2981.8,2981.7,3.35379146]
[1764017526952,0.9518,2981.8,2981.7,3.35379146]
[1764017527156,0.9518,2981.8,2981.6,4.2417783]
[1764017527357,0.485,2981.8,2981.6,7.62922127]
[1764017527525,0.4668,2982.1,2981.6,7.59568224]
[1764017527726,0.002,2982.3,2981.6,7.59568224]
[1764017527932,0.002,2982.3,2981.6,10.94958618]
[1764017528134,0.4668,2982.2,2981.7,0.88688251]
[1764017528968,1.078804,2981.8,2981.5,1.18347239]
[1764017529263,0.4802,2981.6,2981.1,0.001]
[1764017529445,0.485,2981.2,2981.1,0.001]
[1764017529953,0.9472,2981.2,2981.1,0.001]
[1764017530154,4.70705795,2981.2,2981.1,0.001]
[1764017530354,5.51318827,2981.2,2981.1,0.001]
[1764017531344,6.23878238,2981.2,2981.1,0.001]
[1764017532159,0.405504,2980.8,2980.4,0.001]
[1764017532459,0.813404,2980.7,2980.4,0.001]
[1764017532783,1.280204,2980.7,2980.4,0.001]
[1764017533074,2.15172212,2980.7,2980.4,0.001]
[1764017533978,1.06441812,2980.7,2980.4,0.001]
[1764017534173,0.215,2980.7,2980.4,0.001]
[1764017534977,0.4668,2981.5,2980.6,0.9357]
[1764017535274,0.215,2981.4,2980.6,0.9357]
[1764017535462,0.215,2981.4,2980.6,0.4801]
[1764017535667,0.4668,2981.3,2980.6,0.001]
[1764017535879,0.6551,2981.8,2980.7,7.30650961]
[1764017536082,0.6551,2981.8,2980.6,0.216]
[1764017536083,0.4668,2981.7,2980.6,0.001]
[1764017536372,3.35390394,2981.6,2980.6,0.72659411]
[1764017536583,0.215,2981.5,2980.6,0.72659411]
[1764017536777,1.08537039,2981.5,2980.6,0.72659411]
[1764017536968,1.08537039,2981.5,2980.6,1.18219411]
[1764017537479,0.4668,2981.4,2980.6,1.18219411]
[1764017538367,0.215,2981.5,2980.7,7.16543326]
[1764017538567,3.56903328,2981.5,2980.7,3.35491663]
[1764017538767,1.15910237,2981.4,2980.7,3.35491663]
[1764017539283,0.4668,2981.3,2980.7,3.35491663]
[1764017539590,0.4668,2981.3,2980.4,0.001]
[1764017539591,0.405504,2980.7,2980.4,0.001]
[1764017539759,0.877804,2980.5,2980.3,0.001]
[1764017539960,0.0047,2980.4,2980.3,0.001]
[1764017540302,4.25685832,2980.4,2980.3,0.001]
[1764017540463,5.23305528,2980.4,2980.3,0.001]
[1764017541282,5.95864939,2980.4,2980.3,0.001]
[1764017543035,1.66280096,2980.4,2980.3,0.001]
[1764017543153,5.23305528,2980.4,2980.3,0.001]
[1764017545556,5.95864939,2980.4,2980.3,0.001]
[1764017549316,0.76589696,2980.4,2980.3,0.001]
[1764017549453,0.2197,2980.4,2980.3,0.001]
[1764017549990,3.98045832,2980.4,2980.3,0.001]
[1764017550198,0.625204,2980.4,2980.3,0.001]
[1764017551302,3.98045832,2980.4,2980.3,0.001]
[1764017551600,4.47185832,2980.4,2980.3,0.001]
[1764017551759,5.32712341,2980.4,2980.3,0.001]
[1764017555579,6.05271752,2980.4,2980.3,0.001]
[1764017555798,6.36521734,2980.4,2980.3,0.001]
[1764017556274,26.5500096,2980.4,2980.3,0.001]
[1764017556468,25.3369566,2980.4,2980.3,0.001]
[1764017556810,10.07953099,2980.4,2980.3,0.001]
[1764017556961,6.36521734,2980.4,2980.3,0.001]
[1764017566309,6.46200699,2980.4,2980.3,0.001]
[1764017567321,6.46400699,2980.4,2980.3,0.001]
[1764017567821,6.46400699,2980.4,2980.2,0.001]
[1764017568027,6.46400699,2980.4,2979.9,0.001]
[1764017568028,15.55721737,2980.0,2979.9,0.001]
[1764017568320,0.405504,2979.0,2978.1,0.0935]
[1764017568488,0.405504,2978.8,2978.1,0.0935]
[1764017568683,0.405504,2978.6,2978.1,0.0935]
[1764017568883,0.52749982,2978.5,2978.1,0.0935]
[1764017569116,0.71800382,2978.4,2978.1,0.5473]
[1764017569316,0.405504,2978.4,2978.1,0.5473]
[1764017569997,0.405504,2978.4,2978.3,0.4961]
[1764017570193,0.4567,2978.2,2977.5,0.1891]
[1764017570422,0.405504,2978.4,2978.3,0.5939]
[1764017570788,0.215,2978.5,2978.3,1.0762]
[1764017571128,0.215,2978.5,2978.4,0.4961]
[1764017571300,0.215,2978.5,2978.4,0.9784]
[1764017572526,0.215,2978.5,2978.4,4.33590738]
[1764017572822,0.215,2978.5,2978.4,5.11504037]
[1764017573032,3.35638047,2979.4,2978.4,8.47254775]
[1764017573322,3.35638047,2979.4,2978.9,0.4961]
[1764017573323,0.215,2979.3,2978.9,0.4961]
[1764017573524,0.94059411,2979.3,2978.9,0.4961]
[1764017573739,6.43882298,2980.3,2979.2,0.6852]
[1764017573740,2.00455457,2980.3,2979.2,0.6852]
[1764017573941,0.1977,2979.9,2979.3,0.4961]
[1764017574235,0.215,2979.8,2978.7,0.4823]
[1764017574439,0.72559411,2979.6,2978.7,0.4823]
[1764017574601,0.31334513,2979.5,2978.7,0.4823]
[1764017574797,0.405504,2979.3,2978.7,0.4823]
[1764017576499,0.215,2979.4,2978.7,0.4823]
[1764017576500,0.405504,2979.1,2978.7,0.4823]
[1764017576700,0.215,2979.0,2978.7,0.4823]
[1764017577138,0.620504,2979.0,2978.9,0.4961]
[1764017578021,0.215,2979.0,2978.9,0.9784]
[1764017578815,0.215,2979.0,2978.9,0.4961]
[1764017579020,0.215,2979.0,2978.5,0.4823]
[1764017579348,0.215,2979.0,2978.5,3.83964667]
[1764017579746,0.215,2979.0,2978.6,0.4823]
[1764017580337,0.215,2979.0,2978.3,3.4554189]
[1764017580512,3.35694383,2978.9,2978.3,3.9377189]
[1764017581432,3.35694383,2978.9,2978.3,0.5801]
[1764017581646,0.215,2979.0,2978.8,0.4961]
[1764017581943,0.405504,2979.5,2978.9,0.4961]
[1764017582149,1.71034167,2979.4,2978.3,3.45541238]
[1764017582325,0.31354756,2979.3,2978.4,0.4823]
[1764017582654,0.405504,2979.1,2978.4,0.4823]
[1764017582815,0.215,2979.0,2978.4,3.83972311]
[1764017583015,0.215,2979.0,2978.3,0.0978]
[1764017583318,0.405504,2978.9,2978.3,0.0978]
[1764017584050,0.405504,2978.9,2978.4,0.4823]
[1764017584357,0.405504,2978.9,2977.5,0.1891]
[1764017584358,0.405504,2978.3,2977.7,0.4823]
[1764017584564,0.72559411,2978.5,2978.2,0.6018]
[1764017584769,0.215,2978.4,2978.3,0.4823]
[1764017585471,0.215,2978.4,2978.3,0.9784]
[1764017585834,0.31372629,2978.8,2978.3,0.9784]
[1764017586044,3.57218101,2978.7,2978.3,0.9784]
[1764017586244,3.57218101,2978.7,2978.4,0.4823]
[1764017586476,3.57218101,2978.7,2978.6,0.4961]
[1764017586645,0.215,2978.7,2978.6,0.4961]
[1764017587159,0.215,2978.7,2978.6,0.9784]
[1764017587361,3.35661037,2979.2,2978.6,0.9784]
[1764017587562,0.215,2979.1,2978.6,1.41198459]
[1764017587881,0.002,2979.6,2979.3,0.6852]
[1764017588033,0.002,2979.6,2979.5,0.4961]
[1764017588464,0.002,2979.6,2979.5,0.9784]
[1764017588686,0.002,2979.6,2979.5,4.33466783]
[1764017588845,0.002,2979.6,2979.5,5.12268248]
[1764017589585,0.002,2979.9,2979.5,12.56081225]
[1764017589733,0.002,2980.7,2979.8,0.4961]
[1764017589931,0.002,2980.7,2980.1,0.6852]
[1764017590167,0.002,2980.7,2979.5,0.78801465]
[1764017590168,3.35750598,2980.2,2979.5,0.78801465]
[1764017590352,0.002,2980.2,2980.1,0.6817]
[1764017590868,0.002,2980.2,2979.9,0.1891]
[1764017591369,0.002,2980.2,2980.1,0.4961]
[1764017592880,0.002,2980.2,2980.1,0.9784]
[1764017594276,0.002,2980.2,2980.1,4.33399209]
[1764017594463,0.002,2980.2,2980.1,5.1218716]
[1764017595077,0.002,2980.2,2980.1,1.76627951]
[1764017595568,0.002,2980.2,2980.1,0.9784]
[1764017595874,0.002,2980.2,2980.1,4.33399209]
[1764017596266,0.002,2980.4,2980.1,8.41517829]
[1764017596489,0.002,2980.4,2980.3,0.4961]
[1764017596988,0.002,2980.4,2980.3,0.9784]
[1764017597300,0.002,2980.4,2980.3,5.19678473]
[1764017599084,0.002,2980.4,2980.3,3.8514669]
[1764017599307,0.002,2980.4,2980.3,0.4961]
[1764017599904,0.002,2980.4,2980.3,3.8514669]
[1764017600343,0.002,2981.0,2980.4,18.927951]
[1764017600553,0.002,2981.3,2981.0,0.72559411]
[1764017600755,0.002,2981.9,2981.2,0.6789]
[1764017600918,0.002,2981.9,2981.5,7.67977981]
[1764017601237,0.002,2981.9,2981.5,3.84931643]
[1764017601438,0.002,2981.9,2981.5,0.4953]
[1764017602336,0.002,2981.9,2981.5,4.32371643]
[1764017602648,0.002,2981.9,2981.5,0.4953]
[1764017602849,0.002,2981.9,2981.5,3.84931643]
[1764017603518,0.002,2981.9,2981.5,4.32371643]
[1764017603713,0.002,2981.9,2981.5,5.08454536]
[1764017604604,0.002,2981.9,2981.2,0.1836]
[1764017604605,0.1827,2981.9,2981.2,0.1836]
[1764017604834,0.1827,2981.9,2981.3,3.35421339]
[1764017605024,0.1827,2981.9,2981.3,3.82861339]
[1764017605607,0.002,2981.9,2981.5,0.4953]
[1764017607240,0.002,2981.9,2981.5,4.32371643]
[1764017607452,0.002,2981.9,2981.5,5.09150044]
[1764017610323,0.002,2981.9,2981.5,13.21657436]
[1764017614924,0.002,2981.9,2981.5,17.07657436]
[1764017615125,0.002,2981.9,2981.5,9.89209455]
[1764017616944,0.002,2981.9,2981.5,17.07657436]
[1764017618482,0.002,2981.9,2981.5,18.26304843]
[1764017619996,0.002,2981.9,2981.5,9.20269455]
[1764017620161,0.002,2981.9,2981.5,3.35401643]
[1764017620162,0.1827,2981.9,2981.5,3.35401643]
[1764017620359,0.002,2981.9,2981.5,4.32371643]
[1764017620974,0.002,2981.9,2981.5,3.35401643]
[1764017620975,0.1827,2981.9,2981.5,3.35401643]
[1764017621378,0.6338,2981.9,2981.5,3.35401643]
[1764017622086,0.4812,2981.6,2981.3,6.70948286]
[1764017623279,0.4697,2981.4,2981.3,3.35524143]
[1764017623990,0.002,2981.6,2981.3,6.70948286]
[1764017624151,0.002,2981.6,2981.3,0.001]
[1764017625589,0.002,2981.6,2981.5,0.4953]
[1764017626096,0.002,2981.6,2981.5,5.04931054]
[1764017626293,0.002,2981.6,2981.5,6.82819151]
[1764017627175,0.002,2981.6,2981.5,7.04319151]
[1764017628175,0.002,2981.6,2981.5,5.04931054]
[1764017628376,0.002,2981.6,2981.5,6.26980815]
[1764017628809,0.002,2981.6,2981.5,6.30334831]
[1764017629692,0.002,2981.6,2981.5,6.26980815]
[1764017630374,0.002,2981.9,2981.8,14.37712611]
[1764017630575,0.002,2982.2,2981.8,2.84986749]
[1764017630813,0.002,2982.2,2982.1,8.54897392]
[1764017631176,0.002,2982.2,2982.1,9.00237392]
[1764017631504,0.002,2982.3,2982.1,9.00237392]
[1764017631807,0.002,2982.3,2982.2,0.9184]
[1764017632404,0.002,2982.3,2982.2,4.52016144]
[1764017632608,0.002,2982.3,2982.2,5.24161463]
[1764017632808,0.002,2982.3,2982.2,5.20808234]
[1764017633189,0.002,2982.3,2982.2,6.99422669]
[1764017633600,0.002,2982.3,2982.2,5.20808234]
[1764017634320,0.002,2982.3,2982.2,6.59566062]
[1764017634491,0.4662,2983.7,2982.3,0.72559411]
[1764017634691,0.4662,2983.7,2982.5,2.97493051]
[1764017635188,0.4662,2983.7,2982.5,1.64399411]
[1764017636177,0.002,2983.8,2982.5,5.50399411]
[1764017636380,0.002,2983.8,2982.8,13.51053861]
[1764017636915,0.002,2983.8,2982.8,13.96393861]
[1764017637148,0.002,2983.8,2982.8,14.32148477]
[1764017637317,0.4682,2983.5,2982.8,12.08517472]
[1764017637516,0.4682,2983.5,2982.8,12.75357472]
[1764017637884,0.4682,2983.5,2982.8,13.48837527]
[1764017639002,0.002,2983.5,2982.8,17.34837527]
[1764017639202,0.002,2983.5,2982.8,18.39648477]
[1764017639789,0.002,2983.5,2982.9,0.72559411]
[1764017640013,0.002,2983.5,2983.1,0.5707]
[1764017640200,0.002,2983.5,2983.1,5.15629411]
[1764017640402,0.4662,2984.9,2983.7,0.465]
[1764017640619,0.4662,2984.9,2984.0,1.91169433]
[1764017640804,0.4662,2984.9,2984.1,1.13329773]
[1764017641011,0.4662,2984.9,2984.3,0.72559411]
[1764017641398,0.4662,2985.7,2984.8,1.19059411]
[1764017641590,0.4662,2985.7,2984.9,0.68]
[1764017642092,0.4662,2985.7,2984.9,0.215]
[1764017642314,0.4447,2985.0,2984.9,0.215]
[1764017642488,0.4662,2985.7,2984.9,0.215]
[1764017642701,0.4662,2985.7,2984.9,0.68]
[1764017642908,0.4662,2985.7,2984.9,1.08692636]
[1764017643109,0.4662,2985.7,2985.0,10.05025125]
[1764017644724,0.4662,2985.7,2985.1,0.215]
[1764017644929,0.4447,2985.1,2985.0,4.07567786]
[1764017645129,0.4447,2985.1,2985.0,4.29067786]
[1764017645646,0.9107,2985.1,2985.0,4.29067786]
[1764017645940,0.9107,2985.1,2985.0,4.07567786]
[1764017647038,0.466,2985.5,2985.0,11.24084536]
[1764017647345,0.1945,2986.0,2985.3,6.83457675]
[1764017647637,0.4662,2985.9,2985.4,0.215]
[1764017648310,0.1945,2986.0,2985.4,0.215]
[1764017648506,0.6607,2986.0,2985.4,0.215]
[1764017648900,0.4662,2985.9,2985.4,0.215]
[1764017649102,0.4662,2985.9,2985.5,3.34952269]
[1764017649303,0.4447,2985.5,2985.3,0.215]
[1764017649523,0.4706,2985.4,2985.3,0.215]
[1764017649727,0.0044,2985.4,2985.2,0.72559411]
[1764017649911,0.1945,2986.0,2985.3,7.51457675]
[1764017650335,0.4447,2985.4,2985.3,0.215]
[1764017651033,0.466,2985.8,2985.3,0.215]
[1764017651244,0.466,2985.8,2985.4,6.69926976]
[1764017651953,0.4449,2985.5,2985.4,3.34963488]
[1764017652504,0.9107,2985.5,2985.4,3.34963488]
[1764017652708,0.9107,2985.5,2985.4,3.56463488]
[1764017653112,0.9107,2985.5,2985.1,3.34997152]
[1764017653335,0.4662,2985.4,2985.2,0.94059411]
[1764017653556,3.54354963,2986.0,2985.2,1.73814642]
[1764017653557,0.1945,2986.0,2985.2,1.73814642]
[1764017653701,0.4662,2986.1,2985.8,6.83457675]
[1764017653905,0.1945,2985.9,2985.7,0.215]
[1764017654426,0.4447,2985.8,2985.7,0.215]
[1764017655137,0.1945,2985.9,2985.7,0.215]
[1764017655344,0.1945,2985.9,2985.8,3.34918614]
[1764017655838,1.1052,2985.9,2985.8,3.34918614]
[1764017657248,0.4447,2985.9,2985.8,3.34918614]
[1764017657421,1.1054,2985.9,2985.8,3.34918614]
[1764017658843,1.1054,2985.9,2985.2,1.48964783]
[1764017658844,1.1054,2985.9,2985.4,0.94059411]
[1764017659048,0.4706,2985.8,2985.4,0.94059411]
[1764017659363,0.4403,2985.5,2985.4,0.94059411]
[1764017659698,0.4403,2985.5,2985.4,4.07522899]
[1764017659832,0.4403,2985.5,2985.4,4.28922899]
[1764017660249,0.4704,2985.7,2985.4,7.63886387]
[1764017660416,0.4406,2985.5,2984.8,6.70061644]
[1764017660615,0.4704,2985.7,2984.9,0.93959411]
[1764017660815,0.4888,2985.6,2984.9,0.93959411]
[1764017661451,0.4888,2985.6,2985.1,0.72559411]
[1764017661769,0.1945,2985.9,2985.4,6.83457675]
[1764017662347,0.4888,2985.8,2985.3,6.69949418]
[1764017662648,0.4223,2985.5,2985.4,0.214]
[1764017662959,0.4223,2985.4,2985.3,3.34974709]
[1764017663140,0.4888,2985.8,2985.3,10.26324127]
[1764017663469,0.1945,2985.9,2985.4,0.52249634]
[1764017663650,0.002,2986.0,2985.6,10.0482315]
[1764017663818,0.002,2986.0,2985.7,0.214]
[1764017664013,0.4908,2986.0,2985.7,0.214]
[1764017664218,0.4331,2985.8,2985.7,0.214]
[1764017664452,0.4331,2985.8,2985.6,6.698821]
[1764017664754,0.0043,2985.7,2985.6,3.3494105]
[1764017665416,0.6724,2985.9,2985.6,6.698821]
[1764017665622,0.1836,2985.9,2985.6,6.698821]
[1764017666555,0.6724,2985.9,2985.6,6.698821]
[1764017667362,0.4331,2985.7,2985.6,3.3494105]
[1764017667563,0.4331,2985.7,2985.6,3.5634105]
[1764017667933,0.1836,2985.9,2985.6,6.912821]
[1764017668839,0.6724,2985.9,2985.6,6.912821]
[1764017669061,0.6724,2985.9,2985.6,6.698821]
[1764017669266,0.6724,2985.9,2985.7,0.03349298]
[1764017669451,0.002,2986.0,2985.6,10.2622315]
[1764017669650,0.4908,2986.0,2985.6,11.44833172]
[1764017669855,0.4908,2986.0,2985.8,6.69837228]
[1764017670380,0.002,2986.0,2985.9,7.83876748]
[1764017670536,0.002,2986.0,2985.9,8.25587086]
[1764017670733,0.4458,2986.0,2985.9,2.1296474]
[1764017671035,0.9342,2986.0,2985.9,1.19005329]
[1764017671565,0.9342,2986.0,2985.8,7.88842557]
[1764017671736,0.6773,2985.9,2985.8,5.26483354]
[1764017673855,0.002,2986.0,2985.8,5.26483354]
[1764017673856,0.002,2986.0,2985.8,9.09571968]
[1764017674057,0.002,2986.0,2985.9,8.50706656]
[1764017675095,0.002,2986.0,2985.9,8.50693266]
[1764017675498,0.002,2986.0,2985.9,8.99593266]
[1764017675994,0.002,2986.0,2985.9,12.34500664]
[1764017676194,0.002,2986.0,2985.9,11.85600664]
[1764017676395,0.002,2986.3,2985.9,19.16303126]
[1764017676594,0.002,2986.3,2986.2,2.46161603]
[1764017676895,0.002,2986.3,2986.2,2.99241014]
[1764017677065,0.002,2986.3,2986.2,1.42129411]
[1764017677462,0.002,2986.3,2986.2,2.12943478]
[1764017677660,0.002,2986.3,2986.2,0.93959411]
[1764017678093,0.002,2986.3,2986.2,5.47777373]